bitfinex/quotes_SOLUSD_20251126
["timestamp","ask_amount","ask_price","bid_price","bid_amount"]
[1764119358129,3.85,138.96,138.94,7.19735137]
[1764119358328,0.67,138.95,138.94,7.19735137]
[1764119360155,21.63019575,138.97,138.94,25.1907298]
[1764119360465,3.85,138.99,138.96,25.18710419]
[1764119360838,0.67,138.98,138.96,25.18710419]
[1764119361140,3.85,138.99,138.96,25.18710419]
[1764119361532,3.85,138.99,138.97,8.80994492]
[1764119361533,0.67,138.99,138.97,8.80994492]
[1764119361882,3.18,139.0,138.97,9.23994492]
[1764119362033,3.18,139.0,138.99,8.80994492]
[1764119362457,3.18,139.0,138.99,16.00470713]
[1764119363032,0.87,139.03,138.99,50.30047666]
[1764119363265,4.05,139.03,138.99,50.73047666]
[1764119363508,0.72,139.02,138.99,50.73047666]
[1764119364271,0.72,139.02,138.99,86.70428772]
[1764119366799,0.72,139.02,138.99,86.27428772]
[1764119368497,0.72,139.02,138.99,86.70428772]
[1764119369087,0.72,139.02,138.99,86.27428772]
[1764119376394,0.72,139.02,138.99,25.18166774]
[1764119377906,0.72,139.02,138.97,69.97422497]
[1764119378807,0.72,139.02,138.97,70.40422497]
[1764119379583,0.2,139.03,138.99,25.11880892]
[1764119379819,0.2,139.03,139.01,8.80994492]
[1764119380313,0.92,139.03,139.01,8.80994492]
[1764119382104,0.92,139.03,139.02,7.19320961]
[1764119384298,1e-08,139.03,139.02,16.00315453]
[1764119390511,0.72000001,139.03,139.02,7.19320961]
[1764119390893,0.72000001,139.03,139.0,17.98561151]
[1764119392412,0.72000001,139.03,138.99,7.19476221]
[1764119392717,3.18,139.02,138.96,25.18695444]
[1764119393104,0.72,139.01,138.94,25.1907298]
[1764119400799,16.308864,139.0,138.94,25.1907298]
[1764119401327,0.68,138.99,138.94,25.1907298]
[1764119405226,3.18,138.98,138.94,25.1907298]
[1764119405808,3.86,138.98,138.94,25.6207298]
[1764119406006,0.68,138.98,138.94,25.6207298]
[1764119406201,0.68,138.97,138.94,25.6207298]
[1764119408041,0.68,138.97,138.94,25.1907298]
[1764119411950,0.68,138.97,138.9,16.00936896]
[1764119412136,0.68,138.97,138.9,7.19942404]
[1764119412435,7.8759014,138.97,138.9,7.19942404]
[1764119412634,16.308864,138.95,138.89,7.19976938]
[1764119412930,3.18,138.94,138.89,7.19976938]
[1764119413231,3.86,138.94,138.89,7.19976938]
[1764119413433,0.68,138.93,138.89,7.19976938]
[1764119413734,0.68,138.93,138.88,18.00072226]
[1764119415730,0.68,138.93,138.86,61.21227452]
[1764119416518,0.68,138.93,138.86,25.20524268]
[1764119417405,0.68,138.93,138.86,25.63524268]
[1764119422943,0.68,138.93,138.87,0.43]
[1764119422944,3.18,138.92,138.87,0.43]
[1764119423140,0.68,138.91,138.87,0.43]
[1764119423341,0.67,138.93,138.88,8.80994492]
[1764119423538,3.85,138.93,138.89,0.43]
[1764119424243,0.67,138.92,138.89,0.43]
[1764119424831,0.67,138.93,138.9,7.19942404]
[1764119425020,3.85,138.93,138.9,25.19798415]
[1764119425545,103.0,138.96,138.91,0.43]
[1764119425728,103.0,138.96,138.92,8.80994492]
[1764119426243,103.0,138.96,138.93,0.43]
[1764119426743,103.67,138.96,138.93,0.43]
[1764119426928,103.67,138.96,138.94,7.19735137]
[1764119427134,0.67,138.96,138.94,7.19735137]
[1764119428830,0.67,138.96,138.93,25.19134524]
[1764119448872,0.67,138.96,138.93,25.62134524]
[1764119449051,0.67,138.96,138.93,7.19786943]
[1764119452474,7.86659659,138.96,138.91,7.19890576]
[1764119452881,0.67,138.95,138.91,7.19890576]
[1764119456179,0.67,138.95,138.89,25.19923768]
[1764119457458,7.86686842,138.95,138.89,7.1999424]
[1764119457775,7.86686842,138.95,138.88,7.20029523]
[1764119457966,7.86686842,138.95,138.88,25.6314473]
[1764119457967,0.66,138.94,138.88,25.6314473]
[1764119458172,3.84,138.94,138.89,0.43]
[1764119458482,3.84,138.94,138.88,18.43115207]
[1764119458666,0.66,138.93,138.88,18.43115207]
[1764119459578,0.66,138.93,138.89,0.43]
[1764119459773,0.66,138.94,138.89,0.43]
[1764119459974,3.84,138.94,138.89,0.43]
[1764119460361,3.18,138.94,138.9,25.19798415]
[1764119460575,0.66,138.93,138.9,25.19798415]
[1764119461389,3.84,138.93,138.9,25.19798415]
[1764119462067,0.67,138.92,138.9,7.19942404]
[1764119462376,0.67,138.92,138.87,36.00489666]
[1764119462377,0.67,138.92,138.88,25.20119173]
[1764119462780,0.67,138.92,138.88,25.63119173]
[1764119469186,0.67,138.92,138.88,25.20119173]
[1764119471911,3.18,138.93,138.89,0.43]
[1764119472070,3.85,138.93,138.89,0.43]
[1764119472271,0.67,138.92,138.88,25.63119173]
[1764119473668,0.67,138.92,138.88,25.20119173]
[1764119474569,0.67,138.92,138.88,25.63119173]
[1764119475589,0.67,138.92,138.88,7.20046082]
[1764119476665,7.86839287,138.92,138.88,7.20046082]
[1764119476874,7.86839287,138.92,138.87,7.20076873]
[1764119477178,7.86839287,138.92,138.84,43.12465331]
[1764119477179,0.67,138.91,138.84,43.12465331]
[1764119477590,0.67,138.91,138.85,7.20201656]
[1764119477889,7.86905848,138.91,138.85,7.20201656]
[1764119478297,0.67,138.9,138.85,7.20201656]
[1764119480411,7.86946729,138.9,138.85,7.20201656]
[1764119480905,0.67,138.89,138.85,7.20201656]
[1764119481086,3.18,138.88,138.85,7.20201656]
[1764119481405,3.18,138.88,138.84,18.00584439]
[1764119481600,0.67,138.87,138.84,18.00584439]
[1764119481893,0.67,138.87,138.83,7.30305409]
[1764119482078,0.67,138.87,138.83,7.73305409]
[1764119483196,0.67,138.91,138.84,9.23994492]
[1764119483407,0.67,138.91,138.86,8.80994492]
[1764119483700,0.66,138.92,138.86,8.80994492]
[1764119483890,0.66,138.92,138.87,0.43]
[1764119485097,0.66,138.92,138.88,25.20161289]
[1764119486488,0.66,138.92,138.88,7.20046082]
[1764119487700,0.66,138.92,138.88,25.20161289]
[1764119492380,0.66,138.92,138.89,0.43]
[1764119492581,3.84,138.93,138.89,0.43]
[1764119492886,0.66,138.92,138.89,0.43]
[1764119493080,103.0,138.95,138.89,0.43]
[1764119493306,0.66,138.93,138.89,0.43]
[1764119494526,0.66,138.93,138.9,7.19942404]
[1764119496090,0.66,138.93,138.9,25.19798415]
[1764119499317,0.66,138.93,138.9,7.19942404]
[1764119500612,0.66,138.93,138.89,25.1997984]
[1764119503195,3.18,138.92,138.89,25.6297984]
[1764119503497,3.18,138.92,138.89,25.1997984]
[1764119503696,3.84,138.92,138.89,25.1997984]
[1764119506016,3.84,138.92,138.89,25.6297984]
[1764119506519,3.84,138.92,138.89,25.1997984]
[1764119507191,3.18,138.92,138.89,25.1997984]
[1764119507501,3.84,138.92,138.89,25.1997984]
[1764119508302,3.84,138.92,138.89,25.6297984]
[1764119511227,3.84,138.92,138.89,25.1997984]
[1764119511516,0.66,138.91,138.89,25.1997984]
[1764119511719,3.18,138.92,138.89,25.1997984]
[1764119511923,3.84,138.92,138.89,25.1997984]
[1764119512218,3.84,138.92,138.89,25.6297984]
[1764119513802,103.0,138.95,138.89,25.1997984]
[1764119514006,3.87,138.94,138.9,0.43]
[1764119514210,3.18,138.93,138.9,0.43]
[1764119514410,3.87,138.93,138.9,0.43]
[1764119514915,0.69,138.92,138.89,25.6297984]
[1764119515416,3.87,138.93,138.89,25.6297984]
[1764119515823,3.87,138.93,138.9,0.43]
[1764119516921,3.87,138.93,138.89,25.1997984]
[1764119517128,3.87,138.93,138.89,25.6297984]
[1764119518220,0.69,138.92,138.89,25.6297984]
[1764119521327,3.9,138.93,138.9,0.43]
[1764119521533,3.9,138.93,138.89,25.6297984]
[1764119522206,3.18,138.93,138.89,25.6297984]
[1764119522406,21.63799632,138.97,138.9,8.80994492]
[1764119522606,0.72,138.96,138.91,16.308864]
[1764119522829,3.9,138.96,138.91,16.738864]
[1764119523009,3.9,138.96,138.92,0.43]
[1764119523211,3.9,138.96,138.93,25.192543]
[1764119523420,3.18,138.96,138.93,25.192543]
[1764119523620,3.18,138.96,138.94,0.43]
[1764119523805,3.18,138.96,138.93,25.622543]
[1764119524131,3.9,138.96,138.93,25.622543]
[1764119524431,3.9,138.99,138.94,9.23994492]
[1764119524809,0.72,138.98,138.94,9.23994492]
[1764119525328,0.72,139.0,138.96,8.80994492]
[1764119525509,3.18,139.01,138.96,8.80994492]
[1764119525712,3.18,139.01,138.97,0.43]
[1764119525913,1e-08,139.03,138.98,8.80994492]
[1764119526220,0.2,139.05,139.02,8.80994492]
[1764119526418,0.2,139.08,139.05,8.80994492]
[1764119526807,0.2,139.08,139.07,25.11880892]
[1764119527211,0.2,139.08,139.07,25.54880892]
[1764119527434,0.2,139.08,139.07,32.73943234]
[1764119529030,0.2,139.08,139.07,32.30943234]
[1764119529217,0.2,139.08,139.07,32.73943234]
[1764119533016,1e-08,139.09,139.07,35.91943234]
[1764119533342,1e-08,139.09,139.08,0.43]
[1764119533827,1e-08,139.09,139.08,7.62010641]
[1764119534821,0.72000001,139.09,139.08,23.49897041]
[1764119535027,1e-08,139.09,139.08,23.49897041]
[1764119538357,1e-08,139.09,139.08,32.73891533]
[1764119543353,1e-08,139.1,139.09,16.738864]
[1764119543559,1e-08,139.11,139.09,28.72880892]
[1764119543739,1e-08,139.11,139.1,0.43]
[1764119544539,0.2,139.13,139.11,8.80994492]
[1764119544540,1e-08,139.13,139.11,8.80994492]
[1764119544738,1e-08,139.13,139.12,28.29880892]
[1764119546229,1e-08,139.13,139.12,25.11880892]
[1764119546853,1e-08,139.13,139.12,32.30684802]
[1764119547098,1e-08,139.13,139.12,35.91684802]
[1764119547745,1e-08,139.13,139.12,35.48684802]
[1764119548555,1e-08,139.13,139.12,32.30684802]
[1764119549537,1e-08,139.13,139.12,35.91684802]
[1764119549936,1e-08,139.13,139.12,35.48684802]
[1764119550748,0.70000001,139.13,139.12,35.48684802]
[1764119550974,1e-08,139.13,139.12,32.30684802]
[1764119554858,0.70000001,139.13,139.12,32.30684802]
[1764119555058,1e-08,139.13,139.12,32.30684802]
[1764119555581,0.70000001,139.13,139.12,23.4969031]
[1764119555765,0.70000001,139.13,139.12,7.1880391]
[1764119557780,0.70000001,139.13,139.11,7.18855581]
[1764119559081,0.70000001,139.13,139.04,61.13317755]
[1764119559287,7.88753593,139.13,139.05,8.80994492]
[1764119559580,3.18,139.12,139.06,25.16899179]
[1764119559894,3.88,139.12,139.06,25.16899179]
[1764119560189,0.7,139.11,139.06,25.16899179]
[1764119560875,0.7,139.11,139.06,7.19114051]
[1764119561678,0.7,139.11,139.04,7.19197673]
[1764119561888,7.88858711,139.11,139.04,7.19197673]
[1764119562054,110.88858711,139.11,139.04,7.19197673]
[1764119562257,0.7,139.1,139.04,7.19197673]
[1764119563374,7.88922294,139.1,139.02,7.19320961]
[1764119563790,0.7,139.09,139.02,7.19320961]
[1764119563975,0.7,139.09,139.02,25.17623363]
[1764119567978,3.18,139.08,139.02,25.17623363]
[1764119568362,0.7,139.07,139.02,25.17623363]
[1764119570374,3.88,139.07,139.02,25.17623363]
[1764119570881,0.7,139.06,139.02,25.17623363]
[1764119575199,0.7,139.06,139.02,25.60623363]
[1764119575790,0.7,139.06,139.02,25.17623363]
[1764119578397,0.72,139.08,139.03,9.23994492]
[1764119578884,0.72,139.08,139.05,25.17080186]
[1764119579063,0.72,139.08,139.05,7.19165767]
[1764119580270,0.72,139.08,139.05,25.17080186]
[1764119581171,0.72,139.08,139.05,17.97914419]
[1764119591810,0.72,139.08,139.03,25.17442278]
[1764119592122,3.18,139.07,139.03,25.60442278]
[1764119592500,0.71,139.06,139.03,25.60442278]
[1764119592805,0.71,139.06,139.03,25.17442278]
[1764119593888,0.71,139.06,139.03,17.98173056]
[1764119595006,0.71,139.06,139.03,25.17442278]
[1764119595191,0.71,139.06,139.03,25.60442278]
[1764119596209,0.71,139.06,139.03,7.19269222]
[1764119598320,3.89,139.06,139.02,25.17552746]
[1764119598818,0.71,139.05,139.02,25.17552746]
[1764119601514,3.18,139.06,139.02,25.17552746]
[1764119601707,3.89,139.06,139.02,25.60552746]
[1764119605606,0.71,139.06,139.03,0.43]
[1764119606928,3.18,139.09,139.04,25.17261219]
[1764119607143,0.71,139.07,139.04,25.17261219]
[1764119607317,103.0,139.11,139.04,25.60261219]
[1764119607516,0.71,139.08,139.04,25.60261219]
[1764119608024,0.71,139.08,139.05,0.43]
[1764119608206,0.71,139.08,139.04,25.17261219]
[1764119614039,0.71,139.08,139.04,7.19217491]
[1764119614337,0.71,139.08,139.04,25.17261219]
[1764119616746,0.71,139.08,139.04,17.98043728]
[1764119616949,0.71,139.08,139.03,7.19269222]
[1764119617170,7.90014041,139.08,138.98,8.80994492]
[1764119617447,17.98232591,139.07,138.98,8.80994492]
[1764119617756,18.69232591,139.07,138.98,8.80994492]
[1764119618046,0.71,139.06,138.98,8.80994492]
[1764119618250,3.18,139.05,138.98,33.99280182]
[1764119618660,0.71,139.04,138.98,33.99280182]
[1764119621564,0.71,139.04,138.99,0.43]
[1764119621775,3.89,139.04,138.99,0.43]
[1764119622154,0.71,139.03,138.99,0.43]
[1764119622863,0.71,139.03,139.0,25.17985611]
[1764119623659,0.71,139.05,139.01,0.43]
[1764119623866,3.89,139.05,139.01,0.43]
[1764119624564,0.71,139.04,139.01,0.43]
[1764119624760,0.71,139.04,139.02,7.19320961]
[1764119626064,3.18,139.05,139.02,7.19320961]
[1764119626259,3.89,139.05,139.02,25.17623363]
[1764119627564,0.71,139.04,139.02,25.17623363]
[1764119628665,0.71,139.06,139.02,25.60623363]
[1764119628853,3.89,139.06,139.02,25.60623363]
[1764119629256,0.71,139.05,139.02,25.60623363]
[1764119629452,3.18,139.06,139.03,0.43]
[1764119630171,3.18,139.06,139.02,25.17623363]
[1764119630172,0.71,139.05,139.02,25.17623363]
[1764119630371,0.71,139.05,139.02,25.60623363]
[1764119630745,3.89,139.06,139.02,25.60623363]
[1764119632186,0.71,139.05,139.02,25.60623363]
[1764119633872,3.18,139.06,139.02,25.60623363]
[1764119634174,0.7,139.05,139.02,25.60623363]
[1764119637673,0.7,139.1,139.06,16.308864]
[1764119638380,0.7,139.1,139.07,0.43]
[1764119638578,3.18000001,139.13,139.07,0.43]
[1764119638579,0.7,139.12,139.07,0.43]
[1764119639452,0.7,139.12,139.08,25.16537244]
[1764119639879,0.7,139.12,139.08,25.59537244]
[1764119640355,1e-08,139.13,139.09,25.54880892]
[1764119640677,0.70000001,139.13,139.09,25.54880892]
[1764119640862,1e-08,139.13,139.1,0.43]
[1764119641657,1e-08,139.13,139.12,25.11880892]
[1764119641979,1e-08,139.13,139.12,25.54880892]
[1764119642165,1e-08,139.13,139.12,25.11880892]
[1764119643554,1e-08,139.13,139.12,25.54880892]
[1764119643755,1e-08,139.13,139.12,32.73684802]
[1764119643978,1e-08,139.13,139.12,32.30684802]
[1764119644702,0.70000001,139.13,139.12,23.4969031]
[1764119646983,0.70000001,139.13,139.09,7.18958947]
[1764119647198,3.18,139.12,139.07,7.19062342]
[1764119647484,3.18,139.12,139.07,23.49948742]
[1764119647688,0.7,139.11,139.07,23.49948742]
[1764119647858,0.7,139.11,139.07,41.47604598]
[1764119662499,0.7,139.11,139.07,25.16718198]
[1764119663098,0.7,139.11,139.07,7.19062342]
[1764119663265,7.88761764,139.11,139.07,7.19062342]
[1764119663486,7.88761764,139.11,139.06,7.19114051]
[1764119663824,0.69,139.1,139.06,7.19114051]
[1764119669620,0.69,139.1,139.06,25.16899179]
[1764119673124,0.69,139.1,139.07,0.43]
[1764119673125,3.87,139.1,139.07,0.43]
[1764119673297,3.87,139.1,139.06,25.16899179]
[1764119673621,3.87,139.1,139.06,25.59899179]
[1764119673622,0.69,139.09,139.06,25.59899179]
[1764119674008,1e-08,139.13,139.07,9.23994492]
[1764119674207,1e-08,139.13,139.09,8.80994492]
[1764119674406,1e-08,139.13,139.1,0.43]
[1764119674720,0.69000001,139.13,139.1,0.43]
[1764119674902,0.69000001,139.13,139.09,9.23994492]
[1764119675112,0.69000001,139.13,139.1,25.16175412]
[1764119676316,0.69000001,139.13,139.04,0.43]
[1764119676524,0.69000001,139.13,139.05,8.80994492]
[1764119677023,0.69000001,139.13,139.05,25.11880892]
[1764119677391,7.87755251,139.13,139.06,17.9775876]
[1764119677895,0.69,139.12,139.06,17.9775876]
[1764119678208,0.69,139.12,139.06,25.16872811]
[1764119679324,7.87806298,139.12,139.06,25.16872811]
[1764119679711,0.69,139.11,139.06,25.16872811]
[1764119679921,3.18,139.1,139.06,25.16872811]
[1764119680422,0.69,139.09,139.06,25.16872811]
[1764119680623,0.69,139.09,139.06,7.19114051]
[1764119683443,0.69,139.09,139.05,7.19146589]
[1764119683640,0.69,139.09,139.03,7.19269222]
[1764119684219,0.69,139.09,139.03,25.17442278]
[1764119684801,7.87977867,139.09,139.03,7.19269222]
[1764119684997,7.87977867,139.09,139.02,7.19313488]
[1764119685225,0.69,139.08,139.02,7.19313488]
[1764119686128,7.8804989,139.08,139.01,25.17742012]
[1764119686537,0.69,139.07,139.01,25.17742012]
[1764119686743,3.18,139.06,139.01,25.17742012]
[1764119687612,0.69,139.05,139.01,25.17742012]
[1764119688030,0.69,139.05,139.01,25.60742012]
[1764119690624,120.97168127,139.11,139.02,9.23994492]
[1764119690625,103.0,139.11,139.02,9.23994492]
[1764119690928,0.69,139.1,139.02,9.23994492]
[1764119691125,0.69,139.1,139.05,8.80994492]
[1764119691332,3.18,139.11,139.05,8.80994492]
[1764119691536,3.18,139.11,139.06,0.43]
[1764119692136,3.87,139.11,139.06,0.43]
[1764119692709,3.87,139.11,139.07,25.16718198]
[1764119693232,3.87,139.11,139.07,25.59718198]
[1764119693410,3.18,139.11,139.07,25.59718198]
[1764119693609,0.67,139.1,139.07,25.59718198]
[1764119695518,3.18,139.11,139.07,25.59718198]
[1764119696023,0.67,139.1,139.07,25.59718198]
[1764119700922,0.67,139.1,139.06,7.19114051]
[1764119701832,0.67,139.1,139.06,25.16899179]
[1764119702010,0.67,139.1,139.02,7.19320961]
[1764119702213,16.308864,139.07,138.99,17.98657847]
[1764119702537,16.308864,139.07,138.99,25.61134068]
[1764119702538,3.18,139.06,138.99,25.61134068]
[1764119702737,3.85,139.06,138.99,25.18134068]
[1764119702915,0.67,139.05,138.99,25.18134068]
[1764119703636,0.67,139.05,138.99,25.61134068]
[1764119704140,0.67,139.07,139.01,16.308864]
[1764119704318,0.67,139.06,139.01,16.308864]
[1764119704521,0.67,139.06,139.01,16.738864]
[1764119704836,0.67,139.06,139.02,0.43]
[1764119705035,0.67,139.06,139.03,7.19269222]
[1764119707211,0.67,139.06,139.02,7.19320961]
[1764119707416,0.67,139.06,139.02,25.17623363]
[1764119708353,0.67,139.06,139.01,16.308864]
[1764119708643,24.17003426,139.06,138.96,7.62631548]
[1764119708842,0.67,139.05,138.97,16.308864]
[1764119709031,0.67,139.05,138.96,7.62631548]
[1764119709343,0.67,139.05,138.97,34.29783017]
[1764119709728,7.19217491,139.04,138.97,41.49362782]
[1764119710046,3.18,139.03,138.97,41.49362782]
[1764119710346,3.85,139.03,138.97,41.49362782]
[1764119710568,0.67,139.02,138.97,41.49362782]
[1764119712277,0.67,139.02,138.97,23.50466165]
[1764119712449,0.67,139.02,138.97,7.19579765]
[1764119712450,7.86345801,139.02,138.97,7.19579765]
[1764119712825,0.67,139.01,138.97,7.19579765]
[1764119713565,0.67,139.01,138.95,18.09153536]
[1764119715042,0.67,139.01,138.95,18.52153536]
[1764119716856,0.67,139.01,138.95,25.71836875]
[1764119717435,3.18,139.0,138.95,25.71836875]
[1764119717840,0.67,138.99,138.95,18.09153536]
[1764119718043,16.308864,139.02,138.95,18.09153536]
[1764119718044,3.85,139.02,138.96,25.54880892]
[1764119718244,3.85,139.02,138.97,0.43]
[1764119718648,0.67,139.01,138.97,0.43]
[1764119719746,0.67,139.01,138.98,7.19527989]
[1764119720142,0.67,139.01,138.98,25.18347963]
[1764119721959,0.67,139.04,138.99,0.43]
[1764119722278,103.67,139.05,139.0,8.80994492]
[1764119722566,3.18,139.06,139.01,0.43]
[1764119722741,3.85,139.06,139.01,0.43]
[1764119722941,3.18,139.06,139.01,0.43]
[1764119723149,0.67,139.05,139.01,0.43]
[1764119723462,3.9,139.06,139.01,0.43]
[1764119724068,3.9,139.06,139.02,25.17623363]
[1764119724664,3.18,139.06,139.02,25.17623363]
[1764119724855,0.72,139.05,139.02,25.17623363]
[1764119725966,0.72,139.05,139.02,18.41302402]
[1764119728064,3.9,139.06,139.02,25.60623363]
[1764119728951,3.18,139.08,139.03,0.43]
[1764119729156,0.72,139.08,139.03,0.43]
[1764119730172,0.72,139.08,139.04,25.17261219]
[1764119730556,0.72,139.08,139.05,0.43]
[1764119730973,0.72,139.08,139.04,25.60261219]
[1764119732292,0.72,139.08,139.06,7.19114051]
[1764119733176,3.9,139.1,139.06,25.59899179]
[1764119733357,3.9,139.1,139.06,25.16899179]
[1764119733561,0.72,139.09,139.06,25.16899179]
[1764119735770,3.18,139.1,139.06,25.16899179]
[1764119735987,0.72,139.1,139.07,0.43]
[1764119736151,103.0,139.11,139.07,0.43]
[1764119736550,103.0,139.11,139.08,25.16537244]
[1764119736761,0.72000001,139.13,139.08,25.16537244]
[1764119736961,3.90000001,139.13,139.08,25.59537244]
[1764119737456,0.72,139.12,139.08,25.59537244]
[1764119738791,3.18000001,139.13,139.09,0.43]
[1764119739190,1e-08,139.13,139.09,0.43]
[1764119739362,1e-08,139.13,139.11,16.308864]
[1764119739564,1e-08,139.13,139.12,16.308864]
[1764119740383,0.72000001,139.13,139.1,0.43]
[1764119740584,0.72000001,139.13,139.11,16.308864]
[1764119740764,0.72000001,139.13,139.09,16.308864]
[1764119741685,0.72000001,139.13,139.09,16.738864]
[1764119742368,0.72000001,139.13,139.1,41.47061812]
[1764119744592,0.72000001,139.13,139.08,41.47423644]
[1764119744998,0.72000001,139.13,139.08,41.90423644]
[1764119748995,0.72000001,139.13,139.07,7.19045386]
[1764119749195,16.308864,139.12,139.02,8.80994492]
[1764119749399,3.18,139.11,139.02,8.80994492]
[1764119749595,3.9,139.11,139.02,8.80994492]
[1764119749779,0.72,139.1,139.03,16.308864]
[1764119750280,0.72,139.1,139.04,7.19217491]
[1764119751199,0.72,139.1,139.04,25.17261219]
[1764119756102,7.90910301,139.1,139.04,25.17261219]
[1764119756589,0.68,139.09,139.04,25.17261219]
[1764119759290,3.18,139.08,139.04,25.17261219]
[1764119759689,0.68,139.07,139.04,25.17261219]
[1764119761402,3.89,139.09,139.05,0.43]
[1764119761593,3.18,139.09,139.05,0.43]
[1764119761797,0.71,139.08,139.05,0.43]
[1764119762314,0.71,139.11,139.06,8.80994492]
[1764119762493,0.71,139.11,139.06,9.23994492]
[1764119762692,0.71,139.11,139.07,0.43]
[1764119763403,0.71,139.11,139.08,25.16537244]
[1764119763717,0.71000001,139.13,139.08,25.16537244]
[1764119764006,0.71000001,139.13,139.09,0.43]
[1764119764189,0.71000001,139.13,139.09,16.738864]
[1764119764386,0.71000001,139.13,139.1,0.43]
[1764119764794,1e-08,139.13,139.1,0.43]
[1764119765593,1e-08,139.13,139.11,7.18855581]
[1764119766194,1e-08,139.13,139.11,7.18855581]
[1764119767011,0.71,139.12,139.11,7.18855581]
[1764119767210,0.71,139.12,139.1,7.18896354]
[1764119769696,1e-08,139.13,139.1,25.59164506]
[1764119770016,1e-08,139.13,139.1,25.16164506]
[1764119770186,0.71000001,139.13,139.1,25.16164506]
[1764119771313,1e-08,139.13,139.1,25.16164506]
[1764119771516,1e-08,139.13,139.12,16.308864]
[1764119771718,1e-08,139.13,139.12,16.738864]
[1764119772401,1e-08,139.13,139.12,16.308864]
[1764119772598,1e-08,139.13,139.12,23.4969031]
[1764119773592,1e-08,139.13,139.12,23.9269031]
[1764119774823,1e-08,139.13,139.12,23.4969031]
[1764119776419,1e-08,139.13,139.12,23.9269031]
[1764119778226,1e-08,139.13,139.12,32.73684802]
[1764119779920,1e-08,139.13,139.12,32.30684802]
[1764119780222,1e-08,139.13,139.12,32.73684802]
[1764119785223,1e-08,139.13,139.12,32.30684802]
[1764119788128,1e-08,139.13,139.12,32.73684802]
[1764119788637,0.72000001,139.13,139.07,7.62062342]
[1764119788823,0.72000001,139.13,139.08,9.23994492]
[1764119789007,0.72000001,139.13,139.11,16.308864]
[1764119790341,0.72000001,139.13,139.12,7.1880391]
[1764119791042,1e-08,139.13,139.12,7.1880391]
[1764119793040,1e-08,139.13,139.12,7.6180391]
[1764119793337,1e-08,139.13,139.12,7.1880391]
[1764119796032,1e-08,139.13,139.12,16.42798402]
[1764119801548,0.2,139.17,139.16,16.308864]
[1764119802249,0.72,139.2,139.17,8.80994492]
[1764119803148,0.92,139.22,139.18,25.14729127]
[1764119803530,0.72,139.21,139.18,25.14729127]
[1764119804648,0.2,139.22,139.2,8.80994492]
[1764119805140,1e-08,139.22,139.21,32.30220091]
[1764119805633,1e-08,139.22,139.21,16.42333691]
[1764119807025,1e-08,139.22,139.21,15.99333691]
[1764119808435,1e-08,139.22,139.21,32.30220091]
[1764119809926,1e-08,139.22,139.21,15.99333691]
[1764119812453,1e-08,139.22,139.21,32.30220091]
[1764119812651,0.72000001,139.22,139.21,32.30220091]
[1764119813043,1e-08,139.22,139.21,32.30220091]
[1764119813359,0.72000001,139.22,139.21,32.30220091]
[1764119815439,1e-08,139.22,139.21,32.30220091]
[1764119815632,0.71000001,139.22,139.21,32.30220091]
[1764119816445,1e-08,139.22,139.21,32.30220091]
[1764119817257,0.71000001,139.22,139.21,32.30220091]
[1764119817658,1e-08,139.22,139.21,32.30220091]
[1764119821350,1e-08,139.22,139.21,32.73220091]
[1764119821740,1e-08,139.22,139.21,16.42333691]
[1764119823954,1e-08,139.22,139.21,15.99333691]
[1764119825876,1e-08,139.22,139.21,17.1416761]
[1764119826166,1e-08,139.22,139.21,20.01927043]
[1764119826373,1e-08,139.22,139.21,18.87093124]